bitfinex/quotes_BTCUSD_20241222
["timestamp","ask_amount","ask_price","bid_price","bid_amount"]
[1734836609746,0.0001714,96668.0,96657.0,0.27694851]
[1734836609934,0.0001714,96668.0,96662.0,0.206905]
[1734836610135,0.09758034,96664.0,96663.0,0.04888535]
[1734836610541,0.09758034,96667.0,96664.0,0.206902]
[1734836611433,0.0001714,96668.0,96664.0,0.206902]
[1734836611434,0.0001714,96668.0,96664.0,0.413804]
[1734836611640,0.0001714,96668.0,96666.0,0.206897]
[1734836611793,0.0001714,96668.0,96667.0,0.06695864]
[1734836612796,0.0001714,96668.0,96667.0,0.06995864]
[1734836613195,0.0001714,96668.0,96667.0,0.07095864]
[1734836614280,0.0001714,96668.0,96667.0,0.27800142]
[1734836614513,0.0001714,96668.0,96667.0,0.27696704]
[1734836616117,0.0001714,96669.0,96668.0,0.357193]
[1734836616289,0.0001714,96669.0,96668.0,0.55795781]
[1734836617999,0.0011714,96669.0,96668.0,0.56395781]
[1734836618198,0.0001714,96669.0,96668.0,0.55795781]
[1734836618402,0.0001714,96669.0,96668.0,0.56495781]
[1734836618607,0.0001714,96669.0,96668.0,0.56995781]
[1734836618608,0.0011714,96669.0,96668.0,0.56995781]
[1734836618812,0.0001714,96669.0,96668.0,0.56295781]
[1734836619215,0.0011714,96669.0,96668.0,0.56395781]
[1734836619409,0.0011714,96669.0,96668.0,0.56595781]
[1734836619664,0.0021714,96669.0,96668.0,0.57495781]
[1734836620927,0.0001714,96669.0,96668.0,1.09445781]
[1734836621153,0.0001714,96669.0,96668.0,1.09945781]
[1734836621586,0.0001714,96669.0,96668.0,0.97514941]
[1734836622259,0.0001714,96669.0,96668.0,0.97014941]
[1734836622666,0.0011714,96669.0,96668.0,0.98014941]
[1734836623086,0.0011714,96669.0,96668.0,1.00314941]
[1734836623957,0.0011714,96669.0,96668.0,0.45964941]
[1734836623958,0.0001714,96669.0,96668.0,0.45964941]
[1734836624383,0.0011714,96669.0,96668.0,0.46364941]
[1734836624588,0.0011714,96669.0,96668.0,0.45664941]
[1734836624790,0.0021714,96669.0,96668.0,0.46564941]
[1734836625220,0.0021714,96669.0,96668.0,0.45664941]
[1734836625221,0.0011714,96669.0,96668.0,0.45664941]
[1734836625439,0.0021714,96669.0,96668.0,0.56495781]
[1734836625648,0.0011714,96669.0,96668.0,0.56795781]
[1734836625855,0.0011714,96669.0,96668.0,0.56095781]
[1734836626055,0.0011714,96669.0,96668.0,0.55795781]
[1734836626229,0.0011714,96669.0,96668.0,0.56095781]
[1734836627506,0.0011714,96669.0,96668.0,0.55795781]
[1734836627679,0.0021714,96669.0,96668.0,0.56395781]
[1734836627882,0.0001714,96669.0,96668.0,0.18415641]
[1734836628041,0.0001714,96669.0,96668.0,0.0847]
[1734836628245,0.0011714,96669.0,96668.0,0.0887]
[1734836628493,0.0001714,96669.0,96668.0,0.0817]
[1734836628720,0.0011714,96669.0,96668.0,0.0877]
[1734836629151,0.0001714,96669.0,96668.0,0.0817]
[1734836629354,0.0001714,96669.0,96668.0,0.14040118]
[1734836629523,0.0011714,96669.0,96668.0,0.14740118]
[1734836630692,0.0011714,96669.0,96668.0,0.14440118]
[1734836630983,0.0001714,96669.0,96668.0,0.14140118]
[1734836631199,0.0011714,96669.0,96668.0,0.14840118]
[1734836631785,0.0001714,96669.0,96668.0,0.14148688]
[1734836631969,0.0011714,96669.0,96668.0,0.14448688]
[1734836632380,0.0011714,96669.0,96668.0,0.14748688]
[1734836632598,0.0011714,96669.0,96668.0,0.06578688]
[1734836632599,0.09875174,96669.0,96668.0,0.06578688]
[1734836632922,0.09875174,96669.0,96668.0,0.0100857]
[1734836632923,0.10032321,96669.0,96668.0,0.0100857]
[1734836633691,0.10032321,96669.0,96668.0,0.0070857]
[1734836633891,0.09932321,96669.0,96668.0,8.57e-05]
[1734836634074,0.09932321,96669.0,96668.0,0.0030857]
[1734836634276,0.00274287,96669.0,96668.0,0.0330857]
[1734836634500,0.0011714,96669.0,96668.0,0.08404757]
[1734836634944,0.0011714,96669.0,96668.0,0.18235597]
[1734836635287,0.0001714,96669.0,96668.0,0.17735597]
[1734836635463,0.0011714,96669.0,96668.0,0.30649025]
[1734836635691,0.0001714,96669.0,96668.0,0.30045597]
[1734836635806,0.0011714,96669.0,96668.0,0.30745597]
[1734836636465,0.01,96685.0,96684.0,0.307059]
[1734836636676,0.01,96685.0,96684.0,0.3584512]
[1734836637319,0.01,96685.0,96684.0,0.3354512]
[1734836638282,0.011,96685.0,96684.0,0.3434512]
[1734836638462,0.01,96685.0,96684.0,0.3364512]
[1734836638673,0.01,96685.0,96684.0,0.3384512]
[1734836639095,0.01,96685.0,96684.0,0.3364512]
[1734836640101,0.01,96685.0,96684.0,0.3354512]
[1734836640296,0.011,96685.0,96684.0,0.3414512]
[1734836640577,0.01,96685.0,96684.0,0.1285922]
[1734836641157,0.01156853,96685.0,96684.0,0.0573922]
[1734836641399,0.12832701,96685.0,96684.0,0.002]
[1734836641807,0.12932701,96685.0,96684.0,0.006]
[1734836642012,0.12832701,96685.0,96684.0,0.002]
[1734836642218,0.12832701,96685.0,96684.0,0.004]
[1734836642637,0.03074667,96685.0,96684.0,0.2319458]
[1734836642837,0.02917814,96685.0,96684.0,0.3311458]
[1734836643037,0.02917814,96685.0,96684.0,0.34380775]
[1734836643243,0.0101714,96685.0,96684.0,0.34380775]
[1734836643451,0.0101714,96685.0,96684.0,0.34180775]
[1734836643686,0.0101714,96685.0,96684.0,0.34380775]
[1734836643888,0.0101714,96685.0,96684.0,0.34180775]
[1734836644058,0.0101714,96685.0,96684.0,0.34080775]
[1734836644271,0.0101714,96685.0,96684.0,0.34380775]
[1734836644475,0.0101714,96685.0,96684.0,0.44511615]
[1734836644683,0.0101714,96685.0,96684.0,0.44411615]
[1734836644903,0.0101714,96685.0,96684.0,0.44511615]
[1734836645123,0.0101714,96685.0,96684.0,0.46295196]
[1734836645331,0.0111714,96685.0,96684.0,0.51395196]
[1734836645684,0.0111714,96685.0,96684.0,0.51695196]
[1734836646484,0.01917814,96709.0,96699.0,0.0992]
[1734836646696,0.01917814,96709.0,96708.0,0.206808]
[1734836646897,0.01917814,96713.0,96708.0,0.3311164]
[1734836647225,0.00033563,96717.0,96713.0,0.206797]
[1734836647472,0.00033563,96717.0,96715.0,0.206793]
[1734836647674,0.00033563,96717.0,96716.0,0.0762]
[1734836647876,0.00033563,96717.0,96716.0,0.10023385]
[1734836649178,0.00033563,96717.0,96716.0,0.20154225]
[1734836649379,0.00033563,96717.0,96716.0,0.29703309]
[1734836649543,0.00033563,96717.0,96716.0,0.29599924]
[1734836650363,0.00133563,96717.0,96716.0,0.29599924]
[1734836650740,0.00033563,96717.0,96716.0,0.29599924]
[1734836650914,0.00133563,96717.0,96716.0,0.30299924]
[1734836651546,0.00133563,96717.0,96716.0,0.30399924]
[1734836651781,0.00033563,96717.0,96716.0,0.29699924]
[1734836651997,0.00033563,96717.0,96716.0,0.3054189]
[1734836652204,0.0001714,96726.0,96723.0,0.023]
[1734836652417,0.0001716,96728.0,96725.0,0.023]
[1734836652592,0.0001716,96728.0,96726.0,0.10234196]
[1734836652803,0.0001716,96728.0,96727.0,0.023]
[1734836653025,0.0001716,96728.0,96727.0,0.12534196]
[1734836653222,0.0001716,96728.0,96727.0,0.16633532]
[1734836653667,0.0011716,96728.0,96727.0,0.16633532]
[1734836654338,0.0001716,96728.0,96727.0,0.16633532]
[1734836654759,0.0011716,96728.0,96727.0,0.17533532]
[1734836654897,0.0001716,96728.0,96727.0,0.16633532]
[1734836655109,0.0001716,96728.0,96727.0,0.16933532]
[1734836655309,0.0011716,96728.0,96727.0,0.69425532]
[1734836655511,0.0011716,96728.0,96727.0,0.59191336]
[1734836655713,0.09875194,96728.0,96727.0,0.56891336]
[1734836655913,0.09875194,96728.0,96727.0,0.56591336]
[1734836656120,0.0011716,96728.0,96727.0,0.56991336]
[1734836656564,0.0001716,96728.0,96727.0,0.56191336]
[1734836656769,0.0001716,96728.0,96727.0,0.56491336]
[1734836657177,0.0001716,96728.0,96727.0,0.56191336]
[1734836657573,0.0001716,96728.0,96727.0,0.55791336]
[1734836657957,0.0001716,96728.0,96727.0,0.58491336]
[1734836659164,0.0001716,96728.0,96727.0,0.58691336]
[1734836659557,0.0001716,96728.0,96727.0,0.55991336]
[1734836659993,0.0001716,96728.0,96727.0,0.56091336]
[1734836660207,0.0001716,96728.0,96727.0,0.55991336]
[1734836660617,0.0001716,96728.0,96727.0,0.55791336]
[1734836660831,0.0001716,96728.0,96727.0,0.56591336]
[1734836661035,0.0001716,96728.0,96727.0,0.56091336]
[1734836661495,0.0001716,96728.0,96727.0,0.56191336]
[1734836661704,0.0001716,96728.0,96727.0,0.56391336]
[1734836662814,0.0001716,96728.0,96727.0,0.55991336]
[1734836663002,0.0001716,96728.0,96727.0,0.56491336]
[1734836663551,0.19775194,96728.0,96727.0,0.56291336]
[1734836663752,0.19775194,96728.0,96727.0,0.51692]
[1734836663753,0.19942714,96728.0,96727.0,0.51692]
[1734836664003,0.19942714,96728.0,96727.0,0.51992]
[1734836664207,0.19942714,96728.0,96727.0,0.52192]
[1734836664375,0.19942714,96728.0,96727.0,0.51692]
[1734836664582,0.20142714,96728.0,96727.0,0.51692]
[1734836664784,0.20342714,96728.0,96727.0,0.568612]
[1734836665258,0.20142714,96728.0,96727.0,0.568612]
[1734836665634,0.20342714,96728.0,96727.0,0.568612]
[1734836666073,0.20142714,96728.0,96727.0,0.568612]
[1734836666440,0.45673554,96728.0,96727.0,0.51692]
[1734836666656,0.45273554,96728.0,96727.0,0.51692]
[1734836666859,0.45473554,96728.0,96727.0,0.51692]
[1734836667066,0.45673554,96728.0,96727.0,0.51692]
[1734836667259,0.45273554,96728.0,96727.0,0.51692]
[1734836667510,0.47585003,96728.0,96727.0,0.51692]
[1734836667757,0.46985003,96728.0,96727.0,0.51692]
[1734836668047,0.48385003,96728.0,96727.0,0.56962056]
[1734836668210,0.48385003,96728.0,96727.0,0.51792]
[1734836668416,0.47785003,96728.0,96727.0,0.51792]
[1734836668576,0.47785003,96728.0,96727.0,0.001]
[1734836668781,0.58385003,96728.0,96727.0,0.001]
[1734836669288,0.24758034,96727.0,96726.0,8.56e-05]
[1734836669665,0.67641665,96727.0,96726.0,8.56e-05]
[1734836670421,0.68141665,96727.0,96726.0,8.56e-05]
[1734836670633,0.69041665,96727.0,96726.0,0.0010856]
[1734836671653,0.79041665,96727.0,96726.0,0.0010856]
[1734836674269,0.79875297,96727.0,96726.0,0.0010856]
[1734836676560,0.69451665,96727.0,96726.0,0.0010856]
[1734836676736,0.79451665,96727.0,96726.0,0.0010856]
[1734836676990,0.69041665,96727.0,96726.0,0.0010856]
[1734836678048,0.33364965,96727.0,96726.0,0.0010856]
[1734836678219,0.22432898,96727.0,96726.0,0.0010856]
[1734836678630,0.22432898,96727.0,96726.0,0.0782856]
[1734836678765,0.22432898,96727.0,96726.0,0.08611416]
[1734836679008,0.20422676,96727.0,96726.0,0.08511416]
[1734836679469,0.20439796,96727.0,96726.0,0.08511416]
[1734836679796,0.36339796,96727.0,96726.0,0.08611416]
[1734836679946,0.36339796,96727.0,96726.0,0.00891416]
[1734836680146,0.45570636,96727.0,96726.0,8.56e-05]
[1734836680483,0.45370636,96727.0,96726.0,8.56e-05]
[1734836680689,0.45570636,96727.0,96726.0,8.56e-05]
[1734836681098,0.46270636,96727.0,96726.0,0.0010856]
[1734836681301,0.45770636,96727.0,96726.0,0.0010856]
[1734836681528,0.46070636,96727.0,96726.0,0.0010856]
[1734836683249,0.46070636,96727.0,96726.0,8.56e-05]
[1734836683250,0.45370636,96727.0,96726.0,8.56e-05]
[1734836683452,0.45070636,96727.0,96726.0,8.56e-05]
[1734836683655,0.45870636,96727.0,96726.0,0.0010856]
[1734836683865,0.45870636,96727.0,96726.0,8.56e-05]
[1734836684102,0.45870636,96727.0,96726.0,0.0010856]
[1734836684103,0.46670636,96727.0,96726.0,0.0010856]
[1734836684231,0.46970636,96727.0,96726.0,0.0010856]
[1734836684644,0.46670636,96727.0,96726.0,0.0010856]
[1734836685066,0.37212602,96727.0,96726.0,0.0010856]
[1734836685293,0.35239796,96727.0,96726.0,0.00791416]
[1734836685511,0.20939796,96727.0,96726.0,0.00891416]
[1734836685944,0.20939796,96727.0,96726.0,0.00791416]
[1734836686157,0.20939796,96727.0,96726.0,0.00891416]
[1734836686158,0.21639796,96727.0,96726.0,0.00891416]
[1734836686368,0.19939796,96727.0,96726.0,0.00791416]
[1734836686768,0.35639796,96727.0,96726.0,0.00791416]
[1734836687354,0.34939796,96727.0,96726.0,0.00791416]
[1734836687677,0.35239796,96727.0,96726.0,0.00791416]
[1734836688118,0.45070636,96727.0,96726.0,0.00791416]
[1734836688451,0.45170636,96727.0,96726.0,8.56e-05]
[1734836689223,0.45770636,96727.0,96726.0,0.0010856]
[1734836689435,0.45170636,96727.0,96726.0,8.56e-05]
[1734836689841,0.4472574,96727.0,96726.0,0.00781416]
[1734836690584,0.46643271,96727.0,96726.0,0.00781416]
[1734836690933,0.46643271,96727.0,96726.0,8.56e-05]
[1734836691926,0.37478629,96727.0,96726.0,8.56e-05]
[1734836692178,0.46660391,96727.0,96726.0,8.56e-05]
[1734836694005,0.37478629,96727.0,96726.0,8.56e-05]
[1734836694415,0.46660391,96727.0,96726.0,8.56e-05]
[1734836696477,0.37478629,96727.0,96726.0,8.56e-05]
[1734836696921,0.46660391,96727.0,96726.0,8.56e-05]
[1734836698850,0.72575756,96727.0,96726.0,8.56e-05]
[1734836699054,0.72175756,96727.0,96726.0,8.56e-05]
[1734836699255,0.72475756,96727.0,96726.0,8.56e-05]
[1734836699498,0.7331806,96727.0,96726.0,0.0010856]
[1734836699706,0.7251806,96727.0,96726.0,8.56e-05]
[1734836699865,0.7221806,96727.0,96726.0,8.56e-05]
[1734836700073,0.73937365,96727.0,96726.0,0.0010856]
[1734836700683,0.64237365,96727.0,96726.0,0.0010856]
[1734836700886,0.37827856,96727.0,96726.0,8.56e-05]
[1734836701059,0.5758589,96727.0,96726.0,8.56e-05]
[1734836701432,1.14189574,96727.0,96726.0,8.56e-05]
[1734836701610,1.1610995,96727.0,96726.0,8.56e-05]
[1734836701845,1.1580995,96727.0,96726.0,8.56e-05]
[1734836702061,1.1670995,96727.0,96726.0,8.56e-05]
[1734836702261,1.0720995,96727.0,96726.0,8.56e-05]
[1734836702432,1.04011816,96727.0,96726.0,0.00834416]
[1734836703551,0.79253782,96727.0,96726.0,0.00834416]
[1734836703767,0.89011816,96727.0,96726.0,0.00834416]
[1734836703973,0.32408132,96727.0,96726.0,0.00834416]
[1734836704450,0.33590819,96727.0,96726.0,0.00834416]
[1734836704653,0.33590819,96727.0,96726.0,8.56e-05]
[1734836704854,0.33786065,96727.0,96726.0,8.56e-05]
[1734836705399,0.48786065,96727.0,96726.0,8.56e-05]
[1734836708162,0.551759,96727.0,96726.0,8.56e-05]
[1734836708359,0.751759,96727.0,96726.0,8.56e-05]
[1734836709494,1.09168282,96727.0,96726.0,8.56e-05]
[1734836709838,1.08973036,96727.0,96726.0,8.56e-05]
[1734836710255,1.08973036,96727.0,96726.0,6e-07]
[1734836710679,1.11273036,96727.0,96726.0,6e-07]
[1734836711087,0.09181762,96694.0,96693.0,0.0796]
[1734836711293,0.15,96702.0,96693.0,0.07976403]
[1734836711613,0.01920376,96701.0,96693.0,0.07976403]
[1734836711850,0.09181762,96696.0,96693.0,0.07976403]
[1734836712029,0.09181762,96696.0,96694.0,0.0332808]
[1734836712260,0.01920376,96695.0,96693.0,0.07976403]
[1734836712396,0.01920376,96695.0,96693.0,0.08376403]
[1734836712609,0.01920376,96694.0,96693.0,0.08576403]
[1734836712810,0.01920376,96694.0,96693.0,0.08176403]
[1734836713036,0.01920376,96694.0,96693.0,0.13692983]
[1734836713233,0.01920376,96694.0,96693.0,0.13392983]
[1734836713427,0.09181762,96701.0,96693.0,0.13392983]
[1734836713428,0.11102138,96700.0,96695.0,0.0796]
[1734836713631,0.09181762,96699.0,96695.0,0.0796]
[1734836713924,0.01920376,96698.0,96697.0,0.0796]
[1734836714082,0.01920376,96698.0,96697.0,0.13436008]
[1734836715178,0.01920376,96698.0,96697.0,0.13536008]
[1734836715679,0.01920376,96703.0,96698.0,0.0791]
[1734836715842,0.01920376,96703.0,96699.0,0.0791]
[1734836716044,0.01920376,96702.0,96701.0,0.0791]
[1734836716268,0.01920376,96702.0,96701.0,0.1332654]
[1734836718135,0.01920376,96702.0,96701.0,0.1811654]
[1734836718347,0.01920376,96707.0,96703.0,0.0791]
[1734836718550,0.1167841,96707.0,96703.0,0.0791]
[1734836718747,0.09181762,96705.0,96704.0,0.01811654]
[1734836719223,0.11102138,96705.0,96704.0,0.01811654]
[1734836720046,0.01920376,96705.0,96704.0,0.01811654]
[1734836720325,0.01920376,96705.0,96704.0,0.09911654]
[1734836720556,0.01920376,96705.0,96704.0,0.10011654]
[1734836721400,0.01920376,96705.0,96704.0,0.10111654]
[1734836721961,0.01920376,96705.0,96704.0,0.09911654]
[1734836722336,0.01920376,96705.0,96704.0,0.10011654]
[1734836722534,0.01920376,96705.0,96704.0,0.10411654]
[1734836722963,0.01920376,96705.0,96704.0,0.10011654]
[1734836723343,0.01920376,96705.0,96704.0,0.10211654]
[1734836723573,0.20860172,96705.0,96704.0,0.10211654]
[1734836724054,0.20860172,96705.0,96704.0,0.10111654]
[1734836724265,0.35860172,96705.0,96704.0,0.10111654]
[1734836725094,0.3605421,96705.0,96704.0,0.10111654]
[1734836725295,0.3605421,96705.0,96704.0,0.10211654]
[1734836725461,0.3605421,96705.0,96704.0,0.10011654]
[1734836725670,0.3605421,96705.0,96704.0,0.10111654]
[1734836725876,0.3605421,96705.0,96704.0,0.09911654]
[1734836727205,0.3615421,96705.0,96704.0,0.09911654]
[1734836727374,0.3605421,96705.0,96704.0,0.09911654]
[1734836727583,0.5673561,96705.0,96704.0,0.09911654]
[1734836728106,0.3605421,96705.0,96704.0,0.09911654]
[1734836728311,0.3615421,96705.0,96704.0,0.09911654]
[1734836728665,0.3625421,96705.0,96704.0,0.09911654]
[1734836728868,0.3615421,96705.0,96704.0,0.081]
[1734836729035,0.3605421,96705.0,96704.0,0.081]
[1734836729232,0.33939796,96702.0,96701.0,8.57e-05]
[1734836729501,0.35860172,96702.0,96701.0,8.57e-05]
[1734836729766,0.36054488,96702.0,96701.0,8.57e-05]
[1734836729907,0.36054488,96702.0,96701.0,0.00819427]
[1734836730123,0.46185328,96702.0,96701.0,0.00819427]
[1734836730698,0.46185328,96702.0,96701.0,0.00919427]
[1734836731378,0.46185328,96702.0,96701.0,0.0010857]
[1734836731767,0.45991012,96702.0,96701.0,0.0010857]
[1734836731959,0.46091012,96702.0,96701.0,8.57e-05]
[1734836732338,0.46191012,96702.0,96701.0,8.57e-05]
[1734836732537,0.49196971,96702.0,96701.0,8.57e-05]
[1734836732738,1.06841463,96702.0,96701.0,8.57e-05]
[1734836732958,1.27141463,96702.0,96701.0,8.57e-05]
[1734836733204,1.27638564,96702.0,96701.0,7e-07]
[1734836733560,1.30538564,96702.0,96701.0,7e-07]
[1734836733763,0.74623596,96694.0,96693.0,0.00020973]
[1734836734003,0.87960395,96694.0,96693.0,0.00020973]
[1734836734262,0.89880771,96694.0,96693.0,0.00020973]
[1734836735233,0.76674812,96694.0,96693.0,0.00020973]
[1734836735418,1.1075138,96694.0,96693.0,0.00020973]
[1734836735655,0.18939796,96670.0,96669.0,8.57e-05]
[1734836735946,0.66679912,96670.0,96669.0,0.00790284]
[1734836737023,0.26102138,96670.0,96669.0,0.00790284]
[1734836737232,0.35860172,96670.0,96669.0,0.00790284]
[1734836737703,0.26102138,96670.0,96669.0,0.00790284]
[1734836738106,0.33939796,96670.0,96669.0,0.00790284]
[1734836738285,0.09176591,96670.0,96669.0,0.00790284]
[1734836738485,0.34034625,96670.0,96669.0,0.00790284]
[1734836738690,0.33934625,96670.0,96669.0,0.00790284]
[1734836739101,0.35855001,96670.0,96669.0,0.00790284]
[1734836739487,0.35955001,96670.0,96669.0,0.00790284]
[1734836739866,0.45985841,96670.0,96669.0,8.57e-05]
[1734836740273,0.46085841,96670.0,96669.0,8.57e-05]
[1734836740586,0.35955001,96670.0,96669.0,8.57e-05]
[1734836740809,0.02020376,96670.0,96669.0,8.57e-05]
[1734836741007,0.02020376,96670.0,96669.0,0.0768857]
[1734836741209,0.001,96670.0,96669.0,0.10537578]
[1734836741410,0.001,96670.0,96669.0,0.15117578]
[1734836745274,0.001,96670.0,96669.0,0.15221014]
[1734836746167,0.001,96670.0,96669.0,0.17521014]
[1734836746526,0.09176591,96683.0,96671.0,0.0768]
[1734836746705,0.09176591,96683.0,96674.0,0.20688]
[1734836746912,0.09176591,96683.0,96679.0,0.206868]
[1734836747476,0.09176591,96683.0,96680.0,0.0768]
[1734836749090,0.09176591,96683.0,96680.0,0.0778]
[1734836749294,0.09176591,96683.0,96681.0,0.00778]
[1734836749960,0.09176591,96682.0,96681.0,0.00778]
[1734836751853,0.33934625,96682.0,96681.0,0.00778]
[1734836752590,0.3585204,96682.0,96681.0,0.00778]
[1734836752719,0.3585204,96682.0,96681.0,0.00878]
[1734836752915,0.3585204,96682.0,96681.0,0.00978]
[1734836753121,0.3585204,96682.0,96681.0,0.00878]
[1734836753545,0.3585204,96682.0,96681.0,0.00778]
[1734836753920,0.54622825,96673.0,96672.0,0.076]
[1734836754131,0.5654024,96673.0,96672.0,0.076]
[1734836754324,0.3585204,96673.0,96672.0,0.076]
[1734836756237,0.3585204,96673.0,96672.0,0.077]
[1734836756407,0.3585204,96673.0,96672.0,0.076]
[1734836756630,0.3585204,96673.0,96672.0,0.08820571]
[1734836756834,0.3595204,96673.0,96672.0,0.08820571]
[1734836757360,0.3585204,96673.0,96672.0,0.08820571]
[1734836757761,0.3595204,96673.0,96672.0,0.08820571]
[1734836758209,0.3605204,96673.0,96672.0,0.08820571]
[1734836758583,0.3595204,96673.0,96672.0,0.08820571]
[1734836758784,0.35883509,96673.0,96672.0,0.08820571]
[1734836759118,0.35783509,96673.0,96672.0,0.08820571]
[1734836759676,0.35883509,96673.0,96672.0,0.08820571]
[1734836760447,0.26194006,96673.0,96672.0,0.08820571]
[1734836760626,0.20883509,96673.0,96672.0,0.08820571]
[1734836761420,0.11194006,96673.0,96672.0,0.08820571]
[1734836761702,0.20883509,96673.0,96672.0,0.08820571]
[1734836761854,0.11194006,96673.0,96672.0,0.08820571]
[1734836762053,0.01917415,96673.0,96672.0,0.29509071]
[1734836762458,0.01917415,96674.0,96672.0,0.29509071]
[1734836762666,0.01917415,96674.0,96673.0,0.05480448]
[1734836763029,0.01917415,96679.0,96674.0,0.49336]
[1734836763223,0.01917415,96679.0,96676.0,0.0796]
[1734836763450,0.01917415,96682.0,96676.0,0.0796]
[1734836764004,0.01917415,96681.0,96676.0,0.0796]
[1734836764129,0.09193731,96683.0,96678.0,0.413744]
[1734836764526,0.09176591,96682.0,96678.0,0.413744]
[1734836764732,0.09176591,96682.0,96678.0,0.206872]
[1734836765494,0.01922329,96681.0,96678.0,0.206872]
[1734836765694,0.01922329,96681.0,96679.0,0.05365314]
[1734836765896,0.01922329,96681.0,96680.0,0.206868]
[1734836766508,0.01922329,96681.0,96679.0,0.05365314]
[1734836766712,0.09176591,96682.0,96678.0,0.003]
[1734836766916,0.09176591,96679.0,96678.0,0.001]
[1734836767135,0.18866094,96679.0,96678.0,0.001]
[1734836767406,0.20788898,96679.0,96678.0,0.001]
[1734836767612,0.35788898,96679.0,96678.0,0.001]
[1734836767817,0.35788898,96679.0,96678.0,0.00928057]
[1734836768021,0.45919738,96679.0,96678.0,0.00928057]
[1734836769101,0.46019738,96679.0,96678.0,0.00928057]
[1734836769609,0.17022804,96679.0,96678.0,0.00928057]
[1734836769817,0.02022804,96679.0,96678.0,0.00928057]
[1734836770192,0.001,96679.0,96678.0,0.08758057]
[1734836770373,0.001,96679.0,96678.0,0.13308057]
[1734836770956,0.01922804,96681.0,96678.0,0.13308057]
[1734836770957,0.01922804,96681.0,96679.0,0.20687]
[1734836771160,0.01922804,96681.0,96680.0,0.05468246]
[1734836771417,0.09193731,96683.0,96681.0,0.206865]
[1734836771623,0.01923255,96682.0,96681.0,0.206865]
[1734836772180,0.11099846,96682.0,96681.0,0.206865]
[1734836772378,0.01923255,96682.0,96681.0,0.206865]
[1734836772564,0.01923255,96682.0,96681.0,0.28896399]
[1734836772768,0.01923255,96682.0,96681.0,0.29096399]
[1734836772967,0.01923255,96682.0,96681.0,0.29396399]
[1734836773388,0.01923255,96682.0,96681.0,0.08409899]
[1734836773790,0.01923255,96682.0,96681.0,0.08709899]
[1734836773992,0.01923255,96682.0,96681.0,0.29396399]
[1734836774351,0.01923255,96682.0,96681.0,0.28896399]
[1734836774705,0.20789349,96682.0,96681.0,0.08209899]
[1734836774925,0.18866094,96679.0,96678.0,0.1238]
[1734836775305,0.20789349,96679.0,96678.0,0.330672]
[1734836775443,0.11099846,96679.0,96678.0,0.330672]
[1734836775655,0.11099846,96679.0,96678.0,0.3844272]
[1734836776102,0.11099846,96679.0,96678.0,0.9016072]
[1734836776322,0.01923255,96679.0,96678.0,0.9036072]
[1734836776755,0.01923255,96679.0,96678.0,0.9016072]
[1734836776984,0.01923255,96681.0,96678.0,0.9056072]
[1734836777159,0.01923255,96681.0,96680.0,0.206868]
[1734836777500,0.01940395,96682.0,96680.0,0.724038]
[1734836777923,0.01940395,96682.0,96680.0,0.51717]
[1734836778070,0.01923255,96681.0,96680.0,0.51717]
[1734836778269,0.01923255,96681.0,96680.0,0.51817]
[1734836778470,0.01923255,96681.0,96680.0,0.6194784]
[1734836778858,0.01923255,96681.0,96680.0,0.6184784]
[1734836779052,0.11612758,96681.0,96680.0,0.6194784]
[1734836779716,0.11612758,96681.0,96680.0,0.6224784]
[1734836780337,0.11612758,96681.0,96680.0,0.6214784]
[1734836780747,0.11612758,96681.0,96680.0,0.6224784]
[1734836781168,0.11612758,96681.0,96680.0,0.6214784]
[1734836781633,0.20789349,96681.0,96680.0,0.6214784]
[1734836781833,0.20789349,96681.0,96680.0,0.6184784]
[1734836782290,0.35789349,96681.0,96680.0,0.51817]
[1734836782496,0.45920189,96681.0,96680.0,0.51817]
[1734836783457,0.46220189,96681.0,96680.0,0.51817]
[1734836783688,0.45920189,96681.0,96680.0,0.51817]
[1734836784132,0.45920189,96681.0,96680.0,0.51717]
[1734836784339,0.45920189,96681.0,96680.0,0.568887]
[1734836784546,0.46020189,96681.0,96680.0,0.568887]
[1734836784986,0.45920189,96681.0,96680.0,0.568887]
[1734836785189,0.46320189,96681.0,96680.0,0.568887]
[1734836785591,0.60138676,96681.0,96680.0,0.568887]
[1734836785795,0.60038676,96681.0,96680.0,0.568887]
[1734836786013,0.59838676,96681.0,96680.0,0.568887]
[1734836786165,0.60138676,96681.0,96680.0,0.568887]
[1734836786367,0.59838676,96681.0,96680.0,0.51717]
[1734836786737,0.60138676,96681.0,96680.0,0.51717]
[1734836786948,0.80088309,96681.0,96680.0,0.51717]
[1734836787184,0.79988309,96681.0,96680.0,0.51717]
[1734836787396,0.83292674,96681.0,96680.0,0.51717]
[1734836787601,1.05312674,96681.0,96680.0,0.51717]
[1734836787808,1.08515478,96681.0,96680.0,0.51717]
[1734836788008,1.08415478,96681.0,96680.0,0.51717]
[1734836788282,1.05212674,96681.0,96680.0,0.568887]
[1734836788473,1.06129814,96681.0,96680.0,0.569887]
[1734836788669,1.05629814,96681.0,96680.0,0.05115803]
[1734836788882,1.05629814,96681.0,96673.0,8.57e-05]
[1734836788883,0.54554094,96674.0,96673.0,8.57e-05]
[1734836789057,0.64684934,96674.0,96673.0,8.57e-05]
[1734836789256,0.66608189,96674.0,96673.0,8.57e-05]
[1734836790439,0.67039308,96674.0,96673.0,0.0010857]
[1734836790641,0.76728811,96674.0,96673.0,0.0010857]
[1734836790766,0.41040811,96674.0,96673.0,0.00887855]
[1734836791130,0.21620468,96674.0,96673.0,0.00887855]
[1734836791511,0.30909971,96674.0,96673.0,0.00887855]
[1734836791717,0.30009971,96674.0,96673.0,0.00787855]
[1734836791917,0.11399846,96674.0,96673.0,0.00787855]
[1734836792123,0.21989349,96674.0,96673.0,0.00887855]
[1734836792476,0.21689349,96674.0,96673.0,0.00887855]
[1734836792720,0.21889349,96674.0,96673.0,0.00887855]
[1734836792926,0.20989349,96674.0,96673.0,0.00787855]
[1734836793103,0.21489349,96674.0,96673.0,0.00887855]
[1734836793506,0.20989349,96674.0,96673.0,0.00787855]
[1734836794129,0.20789349,96674.0,96673.0,0.00787855]
[1734836794331,0.20889349,96674.0,96673.0,0.00787855]
[1734836794695,0.21089349,96674.0,96673.0,0.00787855]
[1734836794933,0.20989349,96674.0,96673.0,0.00787855]
[1734836795261,0.20889349,96674.0,96673.0,0.00787855]
[1734836795583,0.21089349,96674.0,96673.0,0.00787855]
[1734836795754,0.20789349,96674.0,96673.0,0.00787855]
[1734836795998,0.21089349,96674.0,96673.0,0.00787855]
[1734836796205,0.20889349,96674.0,96673.0,0.00787855]
[1734836796608,0.21089349,96674.0,96673.0,0.00787855]
[1734836797018,0.36089349,96674.0,96673.0,0.00787855]
[1734836797225,0.35989349,96674.0,96673.0,0.00787855]
[1734836797568,0.36089349,96674.0,96673.0,0.00787855]
[1734836798171,0.35989349,96674.0,96673.0,0.00787855]
[1734836798392,0.35789349,96674.0,96673.0,0.00787855]
[1734836798562,0.36089349,96674.0,96673.0,0.00787855]
[1734836798759,0.46220189,96674.0,96673.0,8.57e-05]